[Event "*** Titled Tuesday Blitz"]
[Site "Chess.com"]
[Date "2020.11.03"]
[Round "1"]
[White "Iskusnyh"]
[Black "politeplayer"]
[Result "1-0"]
[WhiteElo "2574"]
[BlackElo "2251"]
[TimeControl "180+1"]
[EndTime "10:06:57 PST"]
[Termination "Iskusnyh won by checkmate"]

1. d4 {[%clk 0:02:59.4]} 1... Nf6 {[%clk 0:02:58.6]} 2. c4 {[%clk 0:02:58.8]}
2... c5 {[%clk 0:02:59.2]} 3. d5 {[%clk 0:02:57.6]} 3... e6 {[%clk 0:02:59.7]}
4. Nc3 {[%clk 0:02:56.4]} 4... exd5 {[%clk 0:03:00.1]} 5. cxd5 {[%clk
0:02:56.9]} 5... d6 {[%clk 0:03:00.5]} 6. Nf3 {[%clk 0:02:57.3]} 6... g6 {[%clk
0:03:00.9]} 7. Nd2 {[%clk 0:02:57.4]} 7... Bg7 {[%clk 0:03:01]} 8. e4 {[%clk
0:02:58]} 8... O-O {[%clk 0:03:00.2]} 9. Be2 {[%clk 0:02:58.5]} 9... a6 {[%clk
0:03:00]} 10. a4 {[%clk 0:02:57.9]} 10... Nbd7 {[%clk 0:02:56.9]} 11. O-O {[%clk
0:02:58.2]} 11... Re8 {[%clk 0:02:55.8]} 12. Ra3 {[%clk 0:02:50.4]} 12... Rb8
{[%clk 0:02:52.6]} 13. a5 {[%clk 0:02:37.9]} 13... Qc7 {[%clk 0:02:50.3]} 14.
Kh1 {[%clk 0:02:31.4]} 14... b5 {[%clk 0:02:30.7]} 15. axb6 {[%clk 0:02:29.7]}
15... Rxb6 {[%clk 0:02:29.7]} 16. Nc4 {[%clk 0:02:24.1]} 16... Rb4 {[%clk
0:02:29.1]} 17. f3 {[%clk 0:02:20.7]} 17... Ne5 {[%clk 0:02:23.1]} 18. Nxe5
{[%clk 0:02:12.5]} 18... Rxe5 {[%clk 0:02:22.7]} 19. Bxa6 {[%clk 0:02:10.7]}
19... Rd4 {[%clk 0:02:09.9]} 20. Qc2 {[%clk 0:02:01.4]} 20... Rh5 {[%clk
0:01:48.8]} 21. Nb5 {[%clk 0:01:57.3]} 21... Qd8 {[%clk 0:01:41.1]} 22. Bxc8
{[%clk 0:01:55]} 22... Qxc8 {[%clk 0:01:14.4]} 23. Nxd4 {[%clk 0:01:52.7]} 23...
Qd8 {[%clk 0:01:08.1]} 24. Nc6 {[%clk 0:01:41.3]} 24... Qe8 {[%clk 0:00:54.7]}
25. Bf4 {[%clk 0:01:35.3]} 25... h6 {[%clk 0:00:47.2]} 26. Bxd6 {[%clk
0:01:33.6]} 26... Nd7 {[%clk 0:00:47.6]} 27. g4 {[%clk 0:01:22.2]} 27... Rh4
{[%clk 0:00:43.6]} 28. Bg3 {[%clk 0:01:21.2]} 28... g5 {[%clk 0:00:41.6]} 29. e5
{[%clk 0:01:12.9]} 29... h5 {[%clk 0:00:37]} 30. Bxh4 {[%clk 0:01:09]} 30...
gxh4 {[%clk 0:00:36.8]} 31. Qf5 {[%clk 0:01:03.9]} 31... hxg4 {[%clk 0:00:32.8]}
32. Qxg4 {[%clk 0:00:56.5]} 32... Nf8 {[%clk 0:00:30.3]} 33. f4 {[%clk
0:00:47.5]} 33... h3 {[%clk 0:00:23.9]} 34. Rxh3 {[%clk 0:00:42.8]} 34... Ng6
{[%clk 0:00:23.3]} 35. Qf5 {[%clk 0:00:36.3]} 35... c4 {[%clk 0:00:20.5]} 36.
Rg1 {[%clk 0:00:34.7]} 36... c3 {[%clk 0:00:17.7]} 37. bxc3 {[%clk 0:00:33.3]}
37... Qa8 {[%clk 0:00:15.9]} 38. Rxg6 {[%clk 0:00:31.1]} 38... fxg6 {[%clk
0:00:14.1]} 39. Ne7# {[%clk 0:00:30.9]} 1-0

[Event "*** Titled Tuesday Blitz"]
[Site "Chess.com"]
[Date "2020.11.03"]
[Round "1"]
[White "Andreikka"]
[Black "Oglob71"]
[Result "0-1"]
[WhiteElo "2907"]
[BlackElo "2473"]
[TimeControl "180+1"]
[EndTime "10:06:59 PST"]
[Termination "Oglob71 won by resignation"]

1. c4 {[%clk 0:02:56.8]} 1... Nf6 {[%clk 0:02:58]} 2. Nc3 {[%clk 0:02:56.4]}
2... c5 {[%clk 0:02:57.5]} 3. Nf3 {[%clk 0:02:53.8]} 3... e6 {[%clk 0:02:57.6]}
4. g3 {[%clk 0:02:48.3]} 4... b6 {[%clk 0:02:57.5]} 5. Bg2 {[%clk 0:02:47.4]}
5... Bb7 {[%clk 0:02:58]} 6. O-O {[%clk 0:02:46.5]} 6... d6 {[%clk 0:02:58.3]}
7. d4 {[%clk 0:02:46]} 7... cxd4 {[%clk 0:02:57.1]} 8. Qxd4 {[%clk 0:02:46.8]}
8... a6 {[%clk 0:02:57]} 9. b3 {[%clk 0:02:46.6]} 9... Nbd7 {[%clk 0:02:57.1]}
10. Ba3 {[%clk 0:02:46.7]} 10... Qc7 {[%clk 0:02:57.1]} 11. Rfd1 {[%clk
0:02:45.2]} 11... Nc5 {[%clk 0:02:56.8]} 12. Rac1 {[%clk 0:02:39.5]} 12... Be7
{[%clk 0:02:54.3]} 13. Bb2 {[%clk 0:02:26.1]} 13... O-O {[%clk 0:02:51.4]} 14.
Ne1 {[%clk 0:02:26.1]} 14... Bxg2 {[%clk 0:02:50.1]} 15. Nxg2 {[%clk 0:02:27]}
15... Rad8 {[%clk 0:02:47.2]} 16. Qf4 {[%clk 0:02:17.7]} 16... Qb7 {[%clk
0:02:42.9]} 17. Qf3 {[%clk 0:02:11.2]} 17... Qxf3 {[%clk 0:02:41.7]} 18. exf3
{[%clk 0:02:12.1]} 18... Rb8 {[%clk 0:02:40.2]} 19. Ne3 {[%clk 0:02:01.8]} 19...
Rfd8 {[%clk 0:02:39.2]} 20. b4 {[%clk 0:01:57.7]} 20... Ncd7 {[%clk 0:02:37.7]}
21. Ne4 {[%clk 0:01:57.6]} 21... Nxe4 {[%clk 0:02:29.3]} 22. fxe4 {[%clk
0:01:58.5]} 22... Rdc8 {[%clk 0:02:24.7]} 23. a3 {[%clk 0:01:55.6]} 23... Rc7
{[%clk 0:02:21.2]} 24. f4 {[%clk 0:01:41.3]} 24... Rbc8 {[%clk 0:02:20.3]} 25.
Kf2 {[%clk 0:01:41.7]} 25... Kf8 {[%clk 0:02:18.7]} 26. Kf3 {[%clk 0:01:41.6]}
26... b5 {[%clk 0:02:10.1]} 27. cxb5 {[%clk 0:01:41.3]} 27... axb5 {[%clk
0:02:08.7]} 28. Rxc7 {[%clk 0:01:32.8]} 28... Rxc7 {[%clk 0:02:08.2]} 29. Bd4
{[%clk 0:01:33.5]} 29... g6 {[%clk 0:02:02.8]} 30. Rd2 {[%clk 0:01:29]} 30...
Nb8 {[%clk 0:02:01.4]} 31. f5 {[%clk 0:01:06.6]} 31... Ke8 {[%clk 0:01:59.2]}
32. fxe6 {[%clk 0:00:53.2]} 32... fxe6 {[%clk 0:01:57.9]} 33. Nd1 {[%clk
0:00:46.2]} 33... Rc4 {[%clk 0:01:37.6]} 34. Nc3 {[%clk 0:00:38.2]} 34... e5
{[%clk 0:01:37.4]} 35. Nxb5 {[%clk 0:00:29.9]} 35... exd4 {[%clk 0:01:37.3]} 36.
Nxd4 {[%clk 0:00:29.3]} 36... Rc3+ {[%clk 0:01:35.2]} 37. Kf4 {[%clk 0:00:24.7]}
37... Rxa3 {[%clk 0:01:35.4]} 38. Nb5 {[%clk 0:00:23.5]} 38... Rb3 {[%clk
0:01:31.6]} 39. Nc7+ {[%clk 0:00:21.4]} 39... Kd7 {[%clk 0:01:27.9]} 40. Nd5
{[%clk 0:00:21.1]} 40... Nc6 {[%clk 0:01:28]} 41. Ra2 {[%clk 0:00:20.9]} 41...
Ke6 {[%clk 0:01:21]} 42. Ra6 {[%clk 0:00:19.8]} 42... Nxb4 {[%clk 0:01:16.8]}
43. Nc7+ {[%clk 0:00:14.9]} 43... Kf7 {[%clk 0:01:14.3]} 44. Ra7 {[%clk
0:00:14.4]} 44... Nc6 {[%clk 0:01:13.3]} 45. Ra8 {[%clk 0:00:14.1]} 45... g5+
{[%clk 0:01:08.5]} 46. Kg4 {[%clk 0:00:13.7]} 46... Ne5+ {[%clk 0:01:08.5]} 47.
Kh5 {[%clk 0:00:13.9]} 47... Rb2 {[%clk 0:01:07.6]} 48. h4 {[%clk 0:00:13.4]}
48... gxh4 {[%clk 0:01:07.9]} 49. Nd5 {[%clk 0:00:13.5]} 49... hxg3 {[%clk
0:01:05.2]} 50. Ra7 {[%clk 0:00:13.4]} 50... Nc6 {[%clk 0:01:05.2]} 51. Rc7
{[%clk 0:00:13]} 51... g2 {[%clk 0:01:04]} 0-1

[Event "*** Titled Tuesday Blitz"]
[Site "Chess.com"]
[Date "2020.11.03"]
[Round "1"]
[White "Triumphmate"]
[Black "1stSecond"]
[Result "0-1"]
[WhiteElo "2387"]
[BlackElo "2768"]
[TimeControl "180+1"]
[EndTime "10:07:02 PST"]
[Termination "1stSecond won by resignation"]

1. e4 {[%clk 0:02:09.3]} 1... e5 {[%clk 0:02:50.9]} 2. Nf3 {[%clk 0:02:08.9]}
2... Nc6 {[%clk 0:02:50.9]} 3. Nc3 {[%clk 0:02:07.9]} 3... Nf6 {[%clk
0:02:50.7]} 4. Bb5 {[%clk 0:02:07.2]} 4... Bb4 {[%clk 0:02:50]} 5. O-O {[%clk
0:02:06.2]} 5... O-O {[%clk 0:02:46.7]} 6. d3 {[%clk 0:02:06.4]} 6... Bxc3
{[%clk 0:02:46.7]} 7. bxc3 {[%clk 0:02:06.2]} 7... d6 {[%clk 0:02:47.2]} 8. Bg5
{[%clk 0:02:06.6]} 8... h6 {[%clk 0:02:41.3]} 9. Bh4 {[%clk 0:02:06]} 9... Bd7
{[%clk 0:02:41.1]} 10. Re1 {[%clk 0:02:05.3]} 10... Ne7 {[%clk 0:02:37.6]} 11.
Bxd7 {[%clk 0:02:04.3]} 11... Nxd7 {[%clk 0:02:37.4]} 12. d4 {[%clk 0:02:02]}
12... Qe8 {[%clk 0:02:36.8]} 13. Bg3 {[%clk 0:01:59.8]} 13... Nc6 {[%clk
0:02:28.4]} 14. Rb1 {[%clk 0:01:56.8]} 14... Rb8 {[%clk 0:02:26.1]} 15. Qd2
{[%clk 0:01:54.7]} 15... Nb6 {[%clk 0:02:24.9]} 16. Nh4 {[%clk 0:01:45.8]} 16...
Rd8 {[%clk 0:01:50.4]} 17. Nf5 {[%clk 0:01:42.6]} 17... Kh7 {[%clk 0:01:44.6]}
18. f4 {[%clk 0:01:27.4]} 18... f6 {[%clk 0:01:33.4]} 19. a4 {[%clk 0:01:13.9]}
19... Ne7 {[%clk 0:01:22.6]} 20. fxe5 {[%clk 0:01:08.6]} 20... dxe5 {[%clk
0:01:19.8]} 21. a5 {[%clk 0:01:00.4]} 21... Nc4 {[%clk 0:01:15.4]} 22. Qe2
{[%clk 0:00:49.9]} 22... Nxa5 {[%clk 0:01:15.4]} 23. Nxe7 {[%clk 0:00:32.5]}
23... Qxe7 {[%clk 0:01:15.4]} 24. dxe5 {[%clk 0:00:32.7]} 24... fxe5 {[%clk
0:01:14.9]} 25. Rb5 {[%clk 0:00:32.8]} 25... Nc6 {[%clk 0:01:05.3]} 26. Rxb7
{[%clk 0:00:28.5]} 26... Rb8 {[%clk 0:01:04.8]} 27. Qb5 {[%clk 0:00:19.2]} 27...
Rxb7 {[%clk 0:00:59.1]} 28. Qxb7 {[%clk 0:00:20.1]} 28... Qd6 {[%clk 0:00:59.8]}
29. Qb5 {[%clk 0:00:18.5]} 29... Rd8 {[%clk 0:00:52.8]} 30. h3 {[%clk
0:00:16.1]} 30... Qg6 {[%clk 0:00:42.1]} 31. Kh2 {[%clk 0:00:15.9]} 31... Rd2
{[%clk 0:00:42.4]} 32. Re2 {[%clk 0:00:14.6]} 32... Rd1 {[%clk 0:00:42.6]} 33.
Qc5 {[%clk 0:00:11]} 33... Qf6 {[%clk 0:00:42.1]} 34. Rf2 {[%clk 0:00:10.7]}
34... Qe6 {[%clk 0:00:42.6]} 35. Rf5 {[%clk 0:00:10.9]} 35... Rd2 {[%clk
0:00:39.3]} 36. Bxe5 {[%clk 0:00:10.9]} 36... Rxc2 {[%clk 0:00:36.4]} 37. Bd4
{[%clk 0:00:08.9]} 37... Qxe4 {[%clk 0:00:35.6]} 38. Rf3 {[%clk 0:00:07.4]}
38... Qxf3 {[%clk 0:00:34.2]} 0-1

[Event "*** Titled Tuesday Blitz"]
[Site "Chess.com"]
[Date "2020.11.03"]
[Round "1"]
[White "Happy1712Drummer"]
[Black "Warre"]
[Result "0-1"]
[WhiteElo "2203"]
[BlackElo "2545"]
[TimeControl "180+1"]
[EndTime "10:07:03 PST"]
[Termination "Warre won on time"]

1. f4 {[%clk 0:02:58.1]} 1... d5 {[%clk 0:02:59.4]} 2. Nf3 {[%clk 0:02:55.4]}
2... g6 {[%clk 0:02:59.8]} 3. g3 {[%clk 0:02:53]} 3... Bg7 {[%clk 0:02:58.1]} 4.
Bg2 {[%clk 0:02:52.9]} 4... c6 {[%clk 0:02:58.8]} 5. O-O {[%clk 0:02:52.4]} 5...
Qb6+ {[%clk 0:02:59.1]} 6. e3 {[%clk 0:02:51.1]} 6... Bxb2 {[%clk 0:02:58.4]} 7.
Bxb2 {[%clk 0:02:49]} 7... Qxb2 {[%clk 0:02:59.3]} 8. Nc3 {[%clk 0:02:47]} 8...
Nf6 {[%clk 0:02:57.4]} 9. Rb1 {[%clk 0:02:34.4]} 9... Qa3 {[%clk 0:02:56.4]} 10.
Rb3 {[%clk 0:02:29.9]} 10... Qd6 {[%clk 0:02:55.8]} 11. d4 {[%clk 0:02:26.3]}
11... O-O {[%clk 0:02:55.5]} 12. Ne5 {[%clk 0:02:24.2]} 12... e6 {[%clk
0:02:38.9]} 13. g4 {[%clk 0:02:06.1]} 13... Nbd7 {[%clk 0:02:37.1]} 14. g5
{[%clk 0:01:57.7]} 14... Ne8 {[%clk 0:02:23.6]} 15. Qg4 {[%clk 0:01:46]} 15...
f6 {[%clk 0:02:17.3]} 16. gxf6 {[%clk 0:01:12.7]} 16... Nexf6 {[%clk 0:02:16.3]}
17. Qh4 {[%clk 0:01:03.5]} 17... Kg7 {[%clk 0:02:11.3]} 18. Rf3 {[%clk
0:00:59.3]} 18... Rh8 {[%clk 0:01:58]} 19. Rg3 {[%clk 0:00:56.8]} 19... Qe7
{[%clk 0:01:54.3]} 20. Rxg6+ {[%clk 0:00:46]} 20... hxg6 {[%clk 0:01:46.4]} 21.
Qxh8+ {[%clk 0:00:46.4]} 21... Kxh8 {[%clk 0:01:46.2]} 22. Nxg6+ {[%clk
0:00:47.1]} 22... Kg7 {[%clk 0:01:46]} 23. Nxe7 {[%clk 0:00:48]} 23... Nb6
{[%clk 0:01:36.9]} 24. Nxc8 {[%clk 0:00:30.8]} 24... Rxc8 {[%clk 0:01:36]} 25.
a4 {[%clk 0:00:28.9]} 25... Rc7 {[%clk 0:01:33.9]} 26. a5 {[%clk 0:00:28.2]}
26... Nc4 {[%clk 0:01:34.4]} 27. Na4 {[%clk 0:00:13]} 27... Nxa5 {[%clk
0:01:32.4]} 28. Rb1 {[%clk 0:00:10.7]} 28... Kf7 {[%clk 0:01:30.4]} 29. Nc5
{[%clk 0:00:10.3]} 29... b6 {[%clk 0:01:27.8]} 30. Nd3 {[%clk 0:00:10.6]} 30...
Nc4 {[%clk 0:01:27.1]} 31. Ne5+ {[%clk 0:00:11.5]} 31... Nxe5 {[%clk 0:01:26.9]}
32. fxe5 {[%clk 0:00:12]} 32... Ng4 {[%clk 0:01:21.4]} 33. Rf1+ {[%clk
0:00:08.6]} 33... Ke7 {[%clk 0:01:21.2]} 34. Rf3 {[%clk 0:00:08.5]} 34... c5
{[%clk 0:01:20.8]} 35. Rg3 {[%clk 0:00:09.4]} 35... Nh6 {[%clk 0:01:17]} 36. Rg6
{[%clk 0:00:08.4]} 36... Nf7 {[%clk 0:01:15.9]} 37. Bh3 {[%clk 0:00:08.3]} 37...
Rc6 {[%clk 0:01:14.5]} 38. Rf6 {[%clk 0:00:07.5]} 38... cxd4 {[%clk 0:01:13.9]}
39. exd4 {[%clk 0:00:08]} 39... Nd8 {[%clk 0:01:13.6]} 40. c4 {[%clk 0:00:07.5]}
40... Rxc4 {[%clk 0:01:13.2]} 41. Rh6 {[%clk 0:00:05.5]} 41... Rxd4 {[%clk
0:01:12.3]} 42. Rh7+ {[%clk 0:00:04.6]} 42... Nf7 {[%clk 0:01:12.3]} 43. Bf1
{[%clk 0:00:01.2]} 43... Re4 {[%clk 0:01:06.1]} 44. Kh1 {[%clk 0:00:02.1]} 44...
Re1 {[%clk 0:01:05]} 45. Kg1 {[%clk 0:00:02.4]} 45... Rxe5 {[%clk 0:01:05.1]}
46. Kf2 {[%clk 0:00:03.1]} 46... a5 {[%clk 0:01:03.8]} 47. h4 {[%clk 0:00:03.5]}
47... a4 {[%clk 0:01:03.9]} 48. Be2 {[%clk 0:00:03.6]} 48... a3 {[%clk 0:01:03]}
49. Rg7 {[%clk 0:00:04.2]} 49... Re4 {[%clk 0:01:01.7]} 50. Rg1 {[%clk
0:00:05.1]} 50... Rxh4 {[%clk 0:01:01.7]} 0-1

[Event "*** Titled Tuesday Blitz"]
[Site "Chess.com"]
[Date "2020.11.03"]
[Round "1"]
[White "Vuk2000"]
[Black "barbara25"]
[Result "1-0"]
[WhiteElo "2672"]
[BlackElo "2342"]
[TimeControl "180+1"]
[EndTime "10:07:04 PST"]
[Termination "Vuk2000 won by resignation"]

1. d4 {[%clk 0:03:00.2]} 1... Nf6 {[%clk 0:02:59.7]} 2. Bg5 {[%clk 0:02:59.9]}
2... c5 {[%clk 0:02:58.1]} 3. Bxf6 {[%clk 0:02:59.3]} 3... exf6 {[%clk
0:02:57.9]} 4. Nc3 {[%clk 0:02:58.2]} 4... Be7 {[%clk 0:02:48.4]} 5. Nf3 {[%clk
0:02:45.7]} 5... O-O {[%clk 0:02:47.9]} 6. e3 {[%clk 0:02:37.3]} 6... b6 {[%clk
0:02:47.8]} 7. Qd2 {[%clk 0:02:17.9]} 7... Bb7 {[%clk 0:02:41.5]} 8. Rd1 {[%clk
0:02:11.6]} 8... f5 {[%clk 0:02:38.2]} 9. Bc4 {[%clk 0:02:03.7]} 9... a6 {[%clk
0:02:36.7]} 10. a4 {[%clk 0:01:54.6]} 10... Bf6 {[%clk 0:02:32.4]} 11. Nd5
{[%clk 0:01:21.2]} 11... b5 {[%clk 0:02:27]} 12. axb5 {[%clk 0:01:17.7]} 12...
axb5 {[%clk 0:02:26.1]} 13. Nxf6+ {[%clk 0:01:16.2]} 13... Qxf6 {[%clk
0:02:25.7]} 14. Bxb5 {[%clk 0:01:08.7]} 14... Bxf3 {[%clk 0:02:19.4]} 15. gxf3
{[%clk 0:01:06.8]} 15... d6 {[%clk 0:02:19.4]} 16. O-O {[%clk 0:00:53.3]} 16...
g6 {[%clk 0:01:58.5]} 17. c3 {[%clk 0:00:44.8]} 17... Na6 {[%clk 0:01:55]} 18.
dxc5 {[%clk 0:00:40.2]} 18... dxc5 {[%clk 0:01:55]} 19. Qd6 {[%clk 0:00:39.7]}
19... Qg5+ {[%clk 0:01:54.8]} 20. Qg3 {[%clk 0:00:37.6]} 20... Qh5 {[%clk
0:01:53.8]} 21. Rd7 {[%clk 0:00:33.7]} 21... Nb8 {[%clk 0:01:25.2]} 22. Rb7
{[%clk 0:00:29.9]} 22... Qh6 {[%clk 0:01:15.2]} 23. Rd1 {[%clk 0:00:28.8]} 23...
Qg7 {[%clk 0:01:14.8]} 24. Bc4 {[%clk 0:00:29]} 24... Qf6 {[%clk 0:01:13.9]} 25.
Bb5 {[%clk 0:00:27.2]} 25... h5 {[%clk 0:00:57.6]} 26. Rd6 {[%clk 0:00:27.2]}
26... Qg7 {[%clk 0:00:53.1]} 27. Rdb6 {[%clk 0:00:26.9]} 27... h4 {[%clk
0:00:46.9]} 28. Qd6 {[%clk 0:00:24.3]} 28... Ra1+ {[%clk 0:00:38.8]} 29. Kg2
{[%clk 0:00:23.3]} 29... h3+ {[%clk 0:00:31.6]} 30. Kxh3 {[%clk 0:00:22.1]}
30... Qh6+ {[%clk 0:00:31.6]} 31. Kg2 {[%clk 0:00:22.3]} 31... Qg5+ {[%clk
0:00:16.8]} 32. Qg3 {[%clk 0:00:21.8]} 32... Qd8 {[%clk 0:00:16.4]} 33. Rxb8
{[%clk 0:00:17.5]} 33... Qd1 {[%clk 0:00:16.2]} 34. Rxf8+ {[%clk 0:00:17.3]}
34... Kxf8 {[%clk 0:00:15.4]} 35. Qd6+ {[%clk 0:00:17.2]} 1-0

[Event "*** Titled Tuesday Blitz"]
[Site "Chess.com"]
[Date "2020.11.03"]
[Round "1"]
[White "TheCairnTerrier"]
[Black "m_ezat"]
[Result "0-1"]
[WhiteElo "2192"]
[BlackElo "2544"]
[TimeControl "180+1"]
[EndTime "10:07:04 PST"]
[Termination "m_ezat won on time"]

1. e4 {[%clk 0:03:00.8]} 1... c6 {[%clk 0:02:58]} 2. d4 {[%clk 0:02:59.6]} 2...
d5 {[%clk 0:02:57.2]} 3. exd5 {[%clk 0:03:00.5]} 3... cxd5 {[%clk 0:02:56.5]} 4.
Bd3 {[%clk 0:03:00.4]} 4... Nc6 {[%clk 0:02:56]} 5. c3 {[%clk 0:02:59.7]} 5...
Qc7 {[%clk 0:02:56.3]} 6. h3 {[%clk 0:02:56.1]} 6... g6 {[%clk 0:02:55.1]} 7.
Nf3 {[%clk 0:02:55.8]} 7... Nh6 {[%clk 0:02:54.2]} 8. O-O {[%clk 0:02:54]} 8...
Bf5 {[%clk 0:02:52.7]} 9. Bxh6 {[%clk 0:02:46.3]} 9... Bxh6 {[%clk 0:02:52]} 10.
Bxf5 {[%clk 0:02:46.1]} 10... gxf5 {[%clk 0:02:51.5]} 11. Qd3 {[%clk 0:02:42]}
11... e6 {[%clk 0:02:50.9]} 12. Re1 {[%clk 0:02:38.1]} 12... O-O-O {[%clk
0:02:47.8]} 13. Nbd2 {[%clk 0:02:05.8]} 13... Rhg8 {[%clk 0:02:39.3]} 14. a4
{[%clk 0:01:55.2]} 14... Rg6 {[%clk 0:02:37.9]} 15. Kh1 {[%clk 0:01:50.9]} 15...
Rdg8 {[%clk 0:02:20]} 16. Rg1 {[%clk 0:01:43.7]} 16... Bf4 {[%clk 0:02:09.2]}
17. a5 {[%clk 0:01:36.5]} 17... a6 {[%clk 0:02:03.7]} 18. b4 {[%clk 0:01:35]}
18... Na7 {[%clk 0:01:56.5]} 19. Nb3 {[%clk 0:01:31]} 19... Qc4 {[%clk
0:01:46.5]} 20. Qxc4+ {[%clk 0:01:26.6]} 20... dxc4 {[%clk 0:01:43.5]} 21. Nbd2
{[%clk 0:01:20.4]} 21... Nb5 {[%clk 0:01:33.8]} 22. Nxc4 {[%clk 0:01:18.5]}
22... Kb8 {[%clk 0:01:16.9]} 23. Nce5 {[%clk 0:01:13.1]} 23... R6g7 {[%clk
0:01:16.4]} 24. c4 {[%clk 0:01:05.5]} 24... Nxd4 {[%clk 0:01:13.2]} 25. Nd7+
{[%clk 0:00:27.3]} 25... Kc7 {[%clk 0:01:05.7]} 26. Nxd4 {[%clk 0:00:27.2]}
26... Kxd7 {[%clk 0:01:05.4]} 27. Rad1 {[%clk 0:00:27.5]} 27... Kc7 {[%clk
0:01:00.1]} 28. Nb3 {[%clk 0:00:25.4]} 28... f6 {[%clk 0:00:43.8]} 29. Nc5
{[%clk 0:00:21.7]} 29... Re7 {[%clk 0:00:42.4]} 30. Rd3 {[%clk 0:00:14.5]} 30...
Bd6 {[%clk 0:00:41.6]} 31. Rgd1 {[%clk 0:00:08.6]} 31... Bxc5 {[%clk 0:00:41.4]}
32. bxc5 {[%clk 0:00:09.2]} 32... Kc6 {[%clk 0:00:41.6]} 33. Rb3 {[%clk
0:00:05.4]} 33... Kxc5 {[%clk 0:00:40.7]} 34. Rb6 {[%clk 0:00:05.3]} 34... Rgg7
{[%clk 0:00:37.8]} 35. Rdd6 {[%clk 0:00:03.4]} 35... Kxc4 {[%clk 0:00:34.8]} 36.
h4 {[%clk 0:00:01.9]} 36... Kc5 {[%clk 0:00:32.1]} 0-1

[Event "*** Titled Tuesday Blitz"]
[Site "Chess.com"]
[Date "2020.11.03"]
[Round "1"]
[White "salomez"]
[Black "Alomaterapia"]
[Result "0-1"]
[WhiteElo "2135"]
[BlackElo "2525"]
[TimeControl "180+1"]
[EndTime "10:07:04 PST"]
[Termination "Alomaterapia won on time"]

1. e4 {[%clk 0:03:00.7]} 1... e5 {[%clk 0:02:59.4]} 2. Nf3 {[%clk 0:03:00.4]}
2... Nc6 {[%clk 0:03:00]} 3. Bc4 {[%clk 0:02:59.3]} 3... Bc5 {[%clk 0:02:58.5]}
4. d3 {[%clk 0:02:58]} 4... Nf6 {[%clk 0:02:58.8]} 5. Nbd2 {[%clk 0:02:58]} 5...
O-O {[%clk 0:02:58.3]} 6. h3 {[%clk 0:02:54.3]} 6... d5 {[%clk 0:02:58.2]} 7.
Bb3 {[%clk 0:02:50.3]} 7... a5 {[%clk 0:02:53.7]} 8. c3 {[%clk 0:02:40]} 8...
dxe4 {[%clk 0:02:42.5]} 9. dxe4 {[%clk 0:02:40.5]} 9... Nh5 {[%clk 0:02:35.6]}
10. Nc4 {[%clk 0:01:59.1]} 10... Qxd1+ {[%clk 0:02:26.2]} 11. Bxd1 {[%clk
0:01:58.3]} 11... Re8 {[%clk 0:02:20.1]} 12. Ba4 {[%clk 0:01:57.7]} 12... f6
{[%clk 0:02:08.5]} 13. O-O {[%clk 0:01:45.8]} 13... Be6 {[%clk 0:01:59.2]} 14.
Bb5 {[%clk 0:00:55.8]} 14... Red8 {[%clk 0:01:52.8]} 15. Be3 {[%clk 0:00:50.4]}
15... Bf8 {[%clk 0:01:39.9]} 16. Bxc6 {[%clk 0:00:20]} 16... Bxc4 {[%clk
0:01:34.2]} 17. Bxb7 {[%clk 0:00:19.4]} 17... Rab8 {[%clk 0:01:33.7]} 18. Bd5+
{[%clk 0:00:16]} 18... Bxd5 {[%clk 0:01:31.4]} 19. exd5 {[%clk 0:00:16.4]} 19...
Rxb2 {[%clk 0:01:22.8]} 20. c4 {[%clk 0:00:15.6]} 20... c6 {[%clk 0:01:13.3]}
21. Rfd1 {[%clk 0:00:15]} 21... cxd5 {[%clk 0:01:09.9]} 22. cxd5 {[%clk
0:00:15.8]} 22... Rb5 {[%clk 0:01:03.4]} 23. g4 {[%clk 0:00:08.1]} 23... Nf4
{[%clk 0:01:02.1]} 24. Bxf4 {[%clk 0:00:08.3]} 24... exf4 {[%clk 0:01:03]} 25.
Rd4 {[%clk 0:00:07.7]} 25... Rbxd5 {[%clk 0:00:40.4]} 26. Rxf4 {[%clk
0:00:06.1]} 26... Rd3 {[%clk 0:00:39.5]} 27. Kg2 {[%clk 0:00:05.4]} 27... Ra3
{[%clk 0:00:39.2]} 28. Re4 {[%clk 0:00:04.5]} 28... Kf7 {[%clk 0:00:37.6]} 29.
Re2 {[%clk 0:00:04.3]} 29... Rdd3 {[%clk 0:00:36.2]} 30. Rb1 {[%clk 0:00:03.2]}
30... Rxf3 {[%clk 0:00:34.7]} 31. Rb7+ {[%clk 0:00:02.6]} 31... Kg6 {[%clk
0:00:34.6]} 32. Rb8 {[%clk 0:00:02.3]} 32... Bd6 {[%clk 0:00:33.8]} 33. Rb6
{[%clk 0:00:01.8]} 33... Bc5 {[%clk 0:00:31.1]} 0-1

[Event "*** Titled Tuesday Blitz"]
[Site "Chess.com"]
[Date "2020.11.03"]
[Round "1"]
[White "Zkid"]
[Black "mr_gustavo"]
[Result "1-0"]
[WhiteElo "2816"]
[BlackElo "2409"]
[TimeControl "180+1"]
[EndTime "10:07:05 PST"]
[Termination "Zkid won by checkmate"]

1. e4 {[%clk 0:02:58.4]} 1... e5 {[%clk 0:02:58.5]} 2. Nf3 {[%clk 0:02:58.2]}
2... Nc6 {[%clk 0:02:58.2]} 3. Bc4 {[%clk 0:02:58]} 3... Nf6 {[%clk 0:02:56.2]}
4. d3 {[%clk 0:02:54.1]} 4... Bc5 {[%clk 0:02:55.5]} 5. O-O {[%clk 0:02:51]}
5... d6 {[%clk 0:02:54.8]} 6. c3 {[%clk 0:02:50.4]} 6... a6 {[%clk 0:02:53.1]}
7. a4 {[%clk 0:02:50.1]} 7... Ba7 {[%clk 0:02:51.7]} 8. b4 {[%clk 0:02:47.3]}
8... h6 {[%clk 0:02:46.7]} 9. Nbd2 {[%clk 0:02:45.5]} 9... O-O {[%clk
0:02:46.4]} 10. Re1 {[%clk 0:02:44.4]} 10... Ng4 {[%clk 0:02:35]} 11. Re2 {[%clk
0:02:42.6]} 11... Kh8 {[%clk 0:02:34.7]} 12. h3 {[%clk 0:02:39.7]} 12... f5
{[%clk 0:02:33.5]} 13. exf5 {[%clk 0:02:36.2]} 13... Nf6 {[%clk 0:02:26.6]} 14.
Nh4 {[%clk 0:02:31.6]} 14... d5 {[%clk 0:02:12]} 15. Bb3 {[%clk 0:02:22.3]}
15... Re8 {[%clk 0:02:08.7]} 16. Nf1 {[%clk 0:02:15.5]} 16... Kh7 {[%clk
0:02:03.3]} 17. Ng3 {[%clk 0:02:07.5]} 17... Nh5 {[%clk 0:01:43]} 18. Nxh5
{[%clk 0:01:31.8]} 18... Qxh4 {[%clk 0:01:42.1]} 19. b5 {[%clk 0:01:02.3]} 19...
Na5 {[%clk 0:01:32.6]} 20. Nxg7 {[%clk 0:01:00.8]} 20... Kxg7 {[%clk 0:01:25]}
21. Bxd5 {[%clk 0:01:00]} 21... Bxf5 {[%clk 0:01:23.9]} 22. bxa6 {[%clk
0:00:48.8]} 22... Rad8 {[%clk 0:01:21.7]} 23. c4 {[%clk 0:00:46.2]} 23... Nc6
{[%clk 0:01:08.2]} 24. axb7 {[%clk 0:00:41.5]} 24... Nd4 {[%clk 0:01:08.1]} 25.
Re3 {[%clk 0:00:41.8]} 25... Kh7 {[%clk 0:01:02.2]} 26. Be4 {[%clk 0:00:38.7]}
26... Bxe4 {[%clk 0:00:54.5]} 27. Rxe4 {[%clk 0:00:39.6]} 27... Qf6 {[%clk
0:00:53.7]} 28. Be3 {[%clk 0:00:38.4]} 28... Rg8 {[%clk 0:00:50.9]} 29. Qh5
{[%clk 0:00:36.1]} 29... Rdf8 {[%clk 0:00:37.6]} 30. Kh1 {[%clk 0:00:32.4]}
30... Re8 {[%clk 0:00:18.3]} 31. Rb1 {[%clk 0:00:28.2]} 31... Bb8 {[%clk
0:00:18.3]} 32. Bxd4 {[%clk 0:00:27.1]} 32... c5 {[%clk 0:00:14.7]} 33. Bxc5
{[%clk 0:00:24.1]} 33... Rd8 {[%clk 0:00:06.8]} 34. Rb6 {[%clk 0:00:21.1]} 34...
Qg7 {[%clk 0:00:05]} 35. Rg4 {[%clk 0:00:20.1]} 35... Qf8 {[%clk 0:00:03.2]} 36.
Bxf8 {[%clk 0:00:19.6]} 36... Rdxf8 {[%clk 0:00:03.7]} 37. Qxh6# {[%clk
0:00:19.7]} 1-0